bitfinex-derivatives/quotes_ETHF0:USTF0_20250607
["timestamp","ask_amount","ask_price","bid_price","bid_amount"]
[1749308339491,3.21376161,2516.3,2516.2,0.79443]
[1749308340692,4.00815161,2516.3,2516.2,0.79443]
[1749308340891,3.21376161,2516.3,2516.0,0.6339]
[1749308341088,0.79446,2516.1,2516.0,0.79449]
[1749308341290,1.1492616,2516.1,2515.8,1.48920161]
[1749308341488,0.79452,2515.9,2515.8,0.00596161]
[1749308341688,6.04391,2516.0,2515.9,0.79452]
[1749308341992,6.04391,2516.0,2515.8,0.80049161]
[1749308341993,0.79452,2515.9,2515.8,0.80049161]
[1749308342386,6.04391,2516.0,2515.9,0.79452]
[1749308342580,7.19335116,2516.0,2515.9,0.79452]
[1749308343395,5.04184116,2516.0,2515.9,0.79452]
[1749308343688,2.13403,2516.2,2516.1,0.79446]
[1749308343893,3.28365222,2516.2,2516.1,0.79446]
[1749308344095,2.48922222,2516.2,2516.1,0.79446]
[1749308346197,3.28365222,2516.2,2516.1,0.79446]
[1749308346592,2.48922222,2516.2,2516.1,0.79446]
[1749308348394,1.80462222,2516.2,2516.1,0.79446]
[1749308349600,2.59905222,2516.2,2516.1,0.79446]
[1749308350199,3.86445222,2516.2,2516.1,0.79446]
[1749308350595,0.79448,2516.1,2516.0,0.79448]
[1749308350896,0.79452,2515.9,2515.8,0.80050161]
[1749308351099,4.6513,2516.0,2515.9,0.79452]
[1749308351298,5.81517697,2516.0,2515.9,0.79452]
[1749308352503,0.79452,2515.9,2515.8,0.80049161]
[1749308352899,4.65131,2516.0,2515.9,0.79452]
[1749308353200,5.81533726,2516.0,2515.9,0.79452]
[1749308353600,5.02082726,2516.0,2515.9,0.79452]
[1749308353995,7.08661726,2516.0,2515.9,0.79452]
[1749308360399,6.29212726,2516.0,2515.9,0.79452]
[1749308360596,1.16402726,2516.0,2515.9,0.79452]
[1749308361005,2.11093,2516.2,2516.1,0.79446]
[1749308361205,3.2743573,2516.2,2516.1,0.79446]
[1749308361799,1.8184273,2516.2,2516.1,0.79446]
[1749308362801,1.1634273,2516.2,2516.1,0.79446]
[1749308363197,1.9578573,2516.2,2516.1,0.79446]
[1749308368909,0.79446,2516.1,2516.0,1.48077]
[1749308369108,1.9578873,2516.1,2516.0,1.48077]
[1749308370321,1.1634273,2516.1,2516.0,1.48077]
[1749308370607,1.16527398,2516.2,2516.0,0.6863]
[1749308370811,1.16527398,2516.1,2516.0,2.74209]
[1749308371013,3.21376161,2516.3,2516.2,0.79443]
[1749308371208,4.37901115,2516.3,2516.2,0.79443]
[1749308371814,4.37901115,2516.3,2516.2,2.05573]
[1749308372308,1.17121115,2516.3,2516.2,2.05573]
[1749308373009,0.00596161,2516.3,2516.2,2.05573]
[1749308386330,0.00596161,2516.3,2516.2,0.79443]
[1749308389135,0.00596161,2516.3,2516.2,2.15783]
[1749308396841,0.00596161,2516.3,2516.2,0.79443]
[1749308402136,0.00596161,2516.3,2516.2,2.05773]
[1749308402537,1.9227,2516.9,2516.2,2.05773]
[1749308402538,0.657,2516.9,2516.2,6.2633]
[1749308402744,0.657,2516.9,2516.8,0.79424]
[1749308402938,1.82234606,2516.9,2516.8,0.79424]
[1749308403244,1.16534606,2516.9,2516.8,0.79424]
[1749308404541,0.66886161,2517.1,2517.0,0.79417]
[1749308404745,1.82649176,2517.1,2517.0,0.79417]
[1749308405847,0.66886161,2517.1,2517.0,0.79417]
[1749308406045,1.82529163,2517.1,2517.0,0.79417]
[1749308406337,1.82529163,2517.1,2516.9,0.7942]
[1749308406338,0.7942,2517.0,2516.9,0.7942]
[1749308406544,3.29753002,2517.0,2516.9,0.7942]
[1749308406943,3.29755447,2517.0,2516.9,0.7942]
[1749308408443,2.50335447,2517.0,2516.9,0.7942]
[1749308409146,1.15645447,2517.0,2516.9,0.7942]
[1749308409946,2.44065447,2517.0,2516.9,0.7942]
[1749308410845,1.2842,2517.0,2516.9,0.7942]
[1749308411046,2.44107259,2517.0,2516.9,0.7942]
[1749308411750,0.00596161,2517.1,2517.0,0.79417]
[1749308412148,1.16266777,2517.1,2517.0,0.79417]
[1749308412348,1.95680777,2517.1,2517.0,0.79417]
[1749308412558,1.95686479,2517.1,2517.0,0.79417]
[1749308412745,2.44692479,2517.1,2517.0,0.79417]
[1749308415042,1.16272479,2517.1,2517.0,0.79417]
[1749308415357,0.00596161,2517.1,2517.0,0.79417]
[1749308415852,0.00596161,2517.1,2517.0,2.07527]
[1749308416750,0.00596161,2517.1,2517.0,0.79417]
[1749308420955,4.5432,2517.6,2517.5,0.79402]
[1749308421154,3.2078,2517.6,2517.5,0.79402]
[1749308421556,5.9695,2517.8,2517.7,0.79395]
[1749308422463,0.6563,2517.8,2517.7,0.79395]
[1749308422756,3.2078,2517.9,2517.5,0.00596161]
[1749308422958,4.00169,2517.9,2517.8,0.79392]
[1749308423161,3.2078,2517.9,2517.8,0.79392]
[1749308428473,3.2078,2517.9,2517.6,4.633]
[1749308428669,0.79398,2517.6,2517.5,0.00596161]
[1749308428866,4.00178,2517.6,2517.5,0.00596161]
[1749308429071,5.15720155,2517.6,2517.5,0.00596161]
[1749308429569,6.44740155,2517.6,2517.5,0.00596161]
[1749308429766,12.63840155,2517.6,2517.0,0.79416]
[1749308430071,3.2078,2517.1,2517.0,0.79416]
[1749308431072,0.79418,2517.0,2516.9,0.79419]
[1749308431374,4.00196,2517.1,2517.0,0.79417]
[1749308431875,3.2078,2517.1,2516.8,0.00596161]
[1749308432077,0.79421,2516.9,2516.8,0.00596161]
[1749308432368,1.95001325,2516.9,2516.8,0.00596161]
[1749308432866,3.27291325,2516.9,2516.8,0.00596161]
[1749308433765,3.27240597,2516.9,2516.8,0.00596161]
[1749308433976,3.2721913,2516.9,2516.8,0.00596161]
[1749308434175,6.4799913,2516.9,2516.8,0.00596161]
[1749308439175,6.47819582,2516.9,2516.8,0.00596161]
[1749308443782,6.47819582,2516.9,2516.8,0.80020161]
[1749308443976,3.2078,2516.9,2516.8,0.80020161]
[1749308445382,3.2078,2517.8,2517.7,0.79395]
[1749308445582,4.00172,2517.8,2517.7,0.79395]
[1749308447278,3.2078,2517.8,2517.4,0.6552]
[1749308447488,0.79402,2517.5,2517.4,0.6552]
[1749308448487,3.2078,2517.5,2517.4,1.44925]
[1749308448986,2.76797,2517.7,2517.5,0.794]
[1749308449787,2.76797,2517.7,2517.6,0.79398]
[1749308450084,2.76795,2517.7,2517.6,0.79398]
[1749308452285,0.79401,2517.6,2517.5,0.79401]
[1749308452586,1.974,2517.7,2517.4,0.6552]
[1749308452587,0.79402,2517.5,2517.4,1.44923]
[1749308453086,0.79401,2517.6,2517.4,1.44923]
[1749308453289,0.79401,2517.6,2517.5,0.79402]
[1749308453582,0.79398,2517.6,2517.4,1.44923]
[1749308453886,0.79398,2517.6,2517.5,0.79402]
[1749308454080,0.79402,2517.5,2517.4,1.44923]
[1749308454283,0.794,2517.6,2517.5,0.79401]
[1749308454583,0.79402,2517.5,2517.4,1.44923]
[1749308454789,0.79401,2517.6,2517.4,1.44923]
[1749308454991,0.79398,2517.6,2517.4,1.44923]
[1749308455290,0.79402,2517.5,2517.4,1.44923]
[1749308457886,0.79411,2517.2,2517.1,1.2998]
[1749308458193,3.2078,2517.2,2517.1,0.79414]
[1749308458691,4.00191,2517.2,2517.1,0.79414]
[1749308458990,3.2078,2517.2,2517.1,0.79414]
[1749308459990,0.7941,2517.3,2517.0,1.9719]
[1749308460195,0.7941,2517.3,2517.2,0.79411]
[1749308460390,0.79414,2517.1,2517.0,2.76606]
[1749308460895,0.79413,2517.2,2517.1,0.79413]
[1749308461095,4.00189,2517.3,2517.2,0.79411]
[1749308461297,0.79412,2517.2,2517.1,0.79411]
[1749308462198,0.79414,2517.1,2517.0,2.76605]
[1749308462498,0.79414,2517.1,2517.0,2.76606]
[1749308462893,0.79414,2517.1,2517.0,1.9719]
[1749308463199,0.79414,2517.1,2517.0,0.6738]
[1749308463401,0.79421,2516.9,2516.8,0.00596161]
[1749308463703,4.00201,2516.9,2516.8,0.00596161]
[1749308464600,4.00201,2516.9,2516.8,0.80020161]
[1749308465795,3.2078,2516.9,2516.8,0.80020161]
[1749308466202,4.00201,2516.9,2516.8,0.80020161]
[1749308466503,3.2078,2516.9,2516.8,0.80020161]
[1749308466705,4.00201,2516.9,2516.8,0.80020161]
[1749308470206,4.00201,2516.9,2516.8,0.00596161]
[1749308470403,4.00201,2516.9,2516.8,0.80020161]
[1749308470604,3.2078,2516.9,2516.8,0.80020161]
[1749308473605,4.36169193,2516.9,2516.8,0.80020161]
[1749308474311,4.64,2517.6,2516.8,3.21376161]
[1749308474612,3.2078,2517.8,2517.7,0.79395]
[1749308474912,4.36145813,2517.8,2517.7,0.79395]
[1749308476411,5.15537813,2517.8,2517.6,0.79398]
[1749308476612,1.15357105,2517.7,2517.6,0.79398]
[1749308479716,3.2078,2517.8,2517.7,0.79395]
[1749308481912,0.00596161,2518.0,2517.9,0.79389]
[1749308482109,1.15957564,2518.0,2517.9,0.79389]
[1749308482910,1.1600181,2518.0,2517.9,0.79389]
[1749308483119,0.00596161,2518.0,2517.9,0.79389]
[1749308484012,0.79982161,2518.0,2517.9,0.79389]
[1749308484415,0.00596161,2518.0,2517.9,0.79389]
[1749308487214,0.00596161,2518.0,2517.9,2.87839]
[1749308494919,0.00596161,2518.0,2517.5,3.8703]
[1749308495125,0.79398,2517.7,2517.6,0.6442]
[1749308495514,5.19267,2517.8,2517.2,0.6529]
[1749308495826,1.9993,2517.7,2517.2,1.43829]
[1749308496018,0.79408,2517.3,2517.2,1.43829]
[1749308496521,1.98513,2517.4,2516.8,0.00596161]
[1749308496721,4.00201,2516.9,2516.8,0.00596161]
[1749308497823,3.2078,2516.9,2516.8,0.80020161]
[1749308498020,3.99066,2517.3,2516.8,0.00596161]
[1749308498021,3.2078,2517.2,2516.8,0.00596161]
[1749308498222,5.35032,2517.2,2517.0,0.79415]
[1749308498420,5.35032,2517.2,2517.1,0.79414]
[1749308498629,0.6446,2517.3,2517.2,0.79411]
[1749308499424,3.8866,2517.5,2517.4,0.79405]
[1749308501646,5.04119348,2517.5,2517.4,0.79405]
[1749308503031,0.6385,2517.7,2517.6,0.79398]
[1749308503222,1.79329479,2517.7,2517.6,0.79398]
[1749308504027,5.00109479,2517.7,2517.5,0.79399]
[1749308504228,1.15479479,2517.6,2517.5,0.79399]
[1749308507928,2.44109479,2517.6,2517.5,0.79399]
[1749308508731,1.15479479,2517.6,2517.5,0.79399]
[1749308509834,3.8463,2517.7,2517.6,0.79398]
[1749308510037,5.00138403,2517.7,2517.6,0.79398]
[1749308510826,5.79533403,2517.7,2517.6,0.79398]
[1749308512937,5.00138403,2517.7,2517.6,0.79398]
[1749308513540,4.36288403,2517.7,2517.6,0.79398]
[1749308514339,3.2078,2517.7,2517.6,0.79398]
[1749308514538,4.36291617,2517.7,2517.6,0.79398]
[1749308515040,3.2078,2517.7,2517.6,0.79398]
[1749308515245,4.36301079,2517.7,2517.6,0.79398]
[1749308517136,3.2078,2517.7,2517.6,0.79398]
[1749308517841,4.36339047,2517.7,2517.6,0.79398]
[1749308518145,3.2078,2517.7,2517.6,0.79398]
[1749308518442,1.15559082,2517.7,2517.6,0.79398]
[1749308526546,3.21376161,2518.0,2517.9,0.79389]
[1749308526743,4.37122895,2518.0,2517.9,0.79389]
[1749308527942,1.16342895,2518.0,2517.9,0.79389]
[1749308528345,1.16342895,2518.0,2517.9,2.09119]
[1749308534450,1.16342895,2518.0,2517.9,0.79389]
[1749308542157,0.00596161,2518.0,2517.9,0.79389]
[1749308542555,0.00596161,2518.0,2517.9,2.13879]
[1749308542756,0.00596161,2518.0,2517.9,2.20770172]
[1749308545759,0.00596161,2518.0,2517.9,2.13879]
[1749308546455,0.00596161,2518.0,2517.9,6.77279]
[1749308546661,0.00596161,2518.0,2517.9,6.84170172]
[1749308549763,0.00596161,2518.0,2517.9,6.77279]
[1749308550763,0.00596161,2518.0,2517.9,5.49680172]
[1749308552663,1.16455424,2518.0,2517.9,5.49680172]
[1749308552860,1.16455424,2518.0,2517.9,5.42789]
[1749308554362,1.16455424,2518.0,2517.9,0.79389]
[1749308556268,3.18355424,2518.0,2517.9,0.79389]
[1749308558569,1.82075424,2518.0,2517.9,0.79389]
[1749308559168,1.16455424,2518.0,2517.9,0.79389]
[1749308559865,1.16455424,2518.0,2517.9,0.86280172]
[1749308560866,1.16455424,2518.0,2517.9,0.79389]
[1749308562469,1.16455424,2518.0,2517.9,4.00169]
[1749308562971,1.16455424,2518.0,2517.9,5.36839]
[1749308564469,0.00596161,2518.0,2517.9,5.36839]
[1749308565871,0.00596161,2518.0,2517.9,10.00039]
[1749308566065,0.00596161,2518.0,2517.9,10.06930172]
[1749308568973,0.00596161,2518.0,2517.9,5.49480172]
[1749308569171,1.18176824,2518.0,2517.9,5.49480172]
[1749308570067,1.18176824,2518.0,2517.9,5.42589]
[1749308571065,1.18176824,2518.0,2517.9,8.63369]
[1749308571877,0.00596161,2518.0,2517.9,8.63369]
[1749308572179,0.00596161,2518.0,2517.9,9.97399]
[1749308573076,0.00596161,2518.0,2517.9,8.70260172]
[1749308573779,0.00596161,2518.0,2517.9,5.49480172]
[1749308573980,0.00596161,2518.0,2517.9,8.70260172]
[1749308574180,0.00596161,2518.0,2517.9,8.63369]
[1749308577685,3.2078,2518.5,2518.4,0.79373]
[1749308577877,4.38339513,2518.5,2518.4,0.79373]
[1749308578183,1.17559513,2518.5,2518.4,0.79373]
[1749308579283,1.86039513,2518.5,2518.4,0.79373]
[1749308581378,3.16409513,2518.5,2518.4,0.79373]
[1749308582387,0.79376,2518.4,2518.3,0.79375]
[1749308582579,3.27305513,2518.4,2518.3,0.79375]
[1749308582782,2.47929513,2518.4,2518.3,0.79375]
[1749308583585,3.27302513,2518.4,2518.3,0.79375]
[1749308583787,2.47929513,2518.4,2518.3,0.79375]
[1749308583981,3.27302513,2518.4,2518.3,0.79375]
[1749308584192,2.47929513,2518.4,2518.3,0.79375]
[1749308585891,3.27302513,2518.4,2518.3,0.79375]
[1749308586490,3.27305513,2518.4,2518.3,0.79376]
[1749308586892,2.47929513,2518.4,2518.3,0.79376]
[1749308588092,3.27302513,2518.4,2518.3,0.79376]
[1749308588290,2.47929513,2518.4,2518.3,0.79376]
[1749308588488,1.17559513,2518.4,2518.3,0.79376]
[1749308588692,1.17559513,2518.4,2518.3,1.42346]
[1749308592193,0.79376,2518.3,2518.2,0.79974161]
[1749308592395,3.15709513,2518.3,2518.2,0.79974161]
[1749308592598,1.17559513,2518.3,2518.2,0.79974161]
[1749308594397,1.81389513,2518.3,2518.2,0.79974161]
[1749308594598,0.6383,2518.3,2518.2,0.79974161]
[1749308594794,1.81332513,2518.3,2518.2,0.79974161]
[1749308596200,1.17502513,2518.3,2518.2,0.79974161]
[1749308596402,1.17502513,2518.3,2518.2,2.13194161]
[1749308596897,1.17502513,2518.3,2518.2,0.79974161]
[1749308598207,3.39432161,2518.7,2518.6,0.79367]
[1749308598397,4.56926531,2518.7,2518.6,0.79367]
[1749308599102,0.79369,2518.6,2518.5,0.79368]
[1749308599305,1.1749437,2518.6,2518.5,0.79368]
[1749308603503,0.00596161,2518.7,2518.6,0.79367]
[1749308603806,1.18090678,2518.7,2518.6,4.00147]
[1749308604001,0.00596161,2518.7,2518.6,4.00147]
[1749308604310,0.00596161,2518.7,2518.6,4.64787]
[1749308608706,0.6713,2519.1,2519.0,0.79354]
[1749308609011,3.2078,2519.8,2518.9,3.2078]
[1749308609205,0.79326,2520.0,2519.5,3.2078]
[1749308609404,1.96719269,2519.9,2519.7,0.79331]
[1749308609601,3.2078,2520.1,2519.6,0.6658]
[1749308609799,0.79332,2519.7,2519.6,0.00596161]
[1749308610100,1.9655912,2519.7,2519.6,0.00596161]
[1749308610305,4.5292912,2519.7,2519.6,0.00596161]
[1749308610707,14.1582912,2519.7,2519.6,0.00596161]
[1749308611211,9.5292912,2519.7,2519.6,0.00596161]
[1749308612504,0.79356,2519.0,2518.8,4.00139]
[1749308612705,0.79355,2519.0,2518.8,0.7936]
[1749308613009,0.79355,2519.0,2518.8,0.79359]
[1749308613210,4.00135,2519.0,2518.8,0.79359]
[1749308613410,3.2078,2519.0,2518.9,0.79358]
[1749308614405,3.2078,2519.0,2518.9,0.79357]
[1749308615113,0.79354,2519.1,2518.9,0.79357]
[1749308615410,2.12054,2519.1,2518.9,0.79357]
[1749308616213,0.79358,2518.9,2518.8,0.6826]
[1749308616913,0.79358,2518.9,2518.7,0.79958161]
[1749308617615,0.79358,2518.9,2518.8,0.79361]
[1749308618214,5.32836,2519.0,2518.9,0.79357]
[1749308618416,4.5348,2519.0,2518.9,0.79357]
[1749308618709,3.2078,2519.0,2518.9,0.79357]
[1749308618915,1.3527,2519.2,2519.1,0.79351]
[1749308619105,3.31876373,2519.2,2519.1,0.79351]
[1749308619305,2.52528373,2519.2,2519.1,0.79351]
[1749308619907,1.17258373,2519.2,2519.1,0.79351]
[1749308620108,3.2078,2519.3,2519.2,0.79348]
[1749308620309,0.7934,2519.5,2519.4,0.79342]
[1749308620510,1.96590453,2519.5,2519.0,3.97272]
[1749308620810,5.8669,2519.6,2519.2,0.79347]
[1749308621012,0.79347,2519.3,2519.2,0.79347]
[1749308621316,0.79344,2519.4,2519.3,0.79345]
[1749308621515,1.965888,2519.4,2519.3,0.79345]
[1749308621723,2.0814,2519.5,2519.4,0.79342]
[1749308621918,2.46039228,2519.5,2519.4,0.79342]
[1749308622117,1.17239228,2519.5,2519.4,0.79342]
[1749308622618,3.2078,2519.6,2519.5,0.79339]
[1749308623108,4.00115,2519.6,2519.5,0.79339]
[1749308623312,3.2078,2519.6,2519.5,0.79339]
[1749308623516,4.00115,2519.6,2519.2,4.562]
[1749308623714,4.00115,2519.6,2519.5,0.79339]
[1749308624615,3.2078,2519.6,2519.5,0.79339]
[1749308627720,4.00115,2519.6,2519.5,0.79339]
[1749308628216,4.00115,2519.6,2519.1,1.98376]
[1749308628217,3.2078,2519.6,2519.0,0.6347]
[1749308628414,3.2078,2519.2,2519.1,0.79351]
[1749308628614,5.3018,2519.5,2519.4,0.79342]
[1749308628814,4.0012,2519.5,2519.4,0.79342]
[1749308629121,4.6889,2519.8,2519.7,0.79332]
[1749308629318,5.86177226,2519.8,2519.7,0.79332]
[1749308630414,5.86179226,2519.8,2519.7,0.79332]
[1749308630614,5.17399226,2519.8,2519.7,0.79332]
[1749308631222,4.38067226,2519.8,2519.7,0.79332]
[1749308631423,5.17396226,2519.8,2519.7,0.79332]
[1749308631623,0.79334,2519.7,2519.6,0.79333]
[1749308631822,1.96621226,2519.7,2519.6,0.79333]
[1749308632024,1.17287226,2519.7,2519.6,0.79333]
[1749308632418,3.2078,2519.8,2519.7,0.79332]
[1749308632722,4.3809609,2519.8,2519.7,0.79332]
[1749308633024,4.3809609,2519.8,2519.5,0.79338]
[1749308633224,1.1731609,2519.7,2519.6,0.79335]
[1749308633418,0.79336,2519.6,2519.5,0.79337]
[1749308633619,0.79335,2519.7,2519.6,0.79335]
[1749308633926,1.966821,2519.7,2519.6,0.79335]
[1749308634324,1.173471,2519.7,2519.6,0.79335]
[1749308635325,1.966791,2519.7,2519.6,0.79335]
[1749308635624,1.173471,2519.7,2519.6,0.79335]
[1749308636020,1.966791,2519.7,2519.6,0.79335]
[1749308636735,1.173471,2519.7,2519.6,0.79335]
[1749308637222,1.173471,2519.7,2519.4,1.3228]
[1749308637223,3.2078,2519.8,2519.7,0.79332]
[1749308637426,4.38160448,2519.8,2519.7,0.79332]
[1749308637823,1.17380448,2519.8,2519.7,0.79332]
[1749308638024,0.79324,2520.0,2519.9,0.79326]
[1749308638325,1.96705349,2520.0,2519.9,0.79326]
[1749308638527,1.17381349,2520.0,2519.6,1.3015]
[1749308638723,1.17381349,2519.9,2519.8,0.79329]
[1749308638924,1.1738397,2520.0,2519.7,0.6662]
[1749308639129,1.1738397,2519.9,2519.8,2.10519]
[1749308641028,0.79326,2519.9,2519.8,0.79329]
[1749308641224,0.79329,2519.8,2519.7,0.6662]
[1749308641424,5.1748544,2519.8,2519.7,0.6662]
[1749308641625,5.1748544,2519.8,2519.7,1.45952]
[1749308641826,4.00109,2519.8,2519.7,1.45952]
[1749308642629,3.2078,2519.8,2519.7,1.45952]
[1749308642825,0.79327,2519.9,2519.8,0.79327]
[1749308643025,0.79324,2520.0,2519.9,0.79324]
[1749308643232,1.2776,2519.8,2518.9,0.6601]
[1749308643428,3.2078,2519.5,2519.4,0.79342]
[1749308643633,0.6382,2519.7,2519.6,0.79335]
[1749308643833,1.81220667,2519.7,2519.6,0.79335]
[1749308644034,2.60555667,2519.7,2519.5,0.79337]
[1749308644328,1.96735667,2519.6,2519.5,0.79337]
[1749308644732,1.96735667,2519.6,2519.4,0.7934]
[1749308644933,0.79339,2519.5,2519.4,0.7934]
[1749308645727,3.2078,2519.5,2518.9,4.5508]
[1749308646032,4.5117,2519.5,2518.9,3.2078]
[1749308646339,4.0013,2519.2,2519.0,0.79351]
[1749308646733,4.0013,2519.2,2519.1,0.79351]
[1749308646932,3.2078,2519.2,2519.1,0.79351]
[1749308647538,0.79341,2519.5,2519.3,0.79344]
[1749308647737,0.79345,2519.3,2518.9,1.2793]
[1749308648436,0.79348,2519.2,2518.8,0.6816]
[1749308648737,3.2078,2519.3,2519.0,0.79352]
[1749308648938,2.8065,2519.2,2519.0,0.79352]
[1749308649236,0.79351,2519.1,2519.0,0.79354]
[1749308649437,3.4697,2519.2,2519.0,0.79352]
[1749308650032,0.79351,2519.1,2519.0,0.79352]
[1749308650239,2.6762,2519.2,2518.8,0.6816]
[1749308650445,0.79353,2519.1,2518.9,0.79354]
[1749308650631,0.79357,2518.9,2518.8,0.6816]
[1749308650829,0.79361,2518.8,2518.7,0.79958161]
[1749308651031,1.17547135,2518.8,2518.7,0.79958161]
[1749308651240,1.96908135,2518.8,2518.7,0.00596161]
[1749308652838,2.60928135,2518.8,2518.7,0.00596161]
[1749308653141,3.2078,2519.0,2518.9,0.79357]
[1749308653443,1.17346368,2519.0,2518.9,0.79357]
[1749308653737,0.79354,2519.1,2519.0,0.79354]
[1749308654041,1.48379,2519.2,2519.1,0.79351]
[1749308654241,1.8636445,2519.2,2518.9,0.79355]
[1749308654542,5.6798445,2519.1,2518.9,0.79355]
[1749308654845,0.79354,2519.0,2518.9,0.79355]
[1749308655244,5.30003,2519.1,2519.0,0.79354]
[1749308655442,5.67956906,2519.1,2519.0,0.79354]
[1749308655644,5.17437906,2519.1,2519.0,0.79354]
[1749308656342,4.38086906,2519.1,2518.8,0.6416]
[1749308656542,4.00132,2519.1,2519.0,0.79354]
[1749308656746,4.38064429,2519.1,2519.0,0.79354]
[1749308656938,3.2078,2519.1,2519.0,0.79354]
[1749308657138,4.38064136,2519.1,2519.0,0.79354]
[1749308657339,4.38039003,2519.1,2519.0,0.79354]
[1749308657638,4.00131,2519.1,2519.0,0.79354]
[1749308657837,3.2078,2519.1,2518.8,0.6416]
[1749308658044,0.79357,2518.9,2518.8,1.43519]
[1749308658944,0.79357,2518.9,2518.8,0.79359]
[1749308659145,1.43057,2518.9,2518.8,0.79359]
[1749308659643,0.79361,2518.8,2518.7,0.79957161]
[1749308659844,4.00141,2518.8,2518.7,0.00596161]
[1749308660043,5.30871,2518.8,2518.7,0.00596161]
[1749308660345,6.4809406,2518.8,2518.7,0.00596161]
[1749308661840,4.3800306,2518.8,2518.7,0.79960161]
[1749308662244,3.2078,2518.8,2518.7,0.79960161]
[1749308663041,4.00141,2518.8,2518.7,0.79960161]
[1749308663637,3.2078,2518.8,2518.7,0.79960161]
[1749308663838,1.3181,2519.2,2519.1,0.79351]
[1749308664043,2.48888168,2519.2,2519.1,0.79351]
[1749308664243,1.3181,2519.2,2519.1,0.79351]
[1749308664546,0.6903,2519.2,2519.1,0.79351]
[1749308664948,0.79351,2519.1,2519.0,0.79353]
[1749308665446,1.4838,2519.2,2519.0,0.79353]
[1749308665640,1.4838,2519.2,2519.1,0.79351]
[1749308665843,1.86118323,2519.2,2519.1,0.79351]
[1749308666043,0.6903,2519.2,2519.1,0.79351]
[1749308666548,0.79345,2519.3,2519.2,0.79345]
[1749308666754,1.96432621,2519.3,2519.2,0.79345]
[1749308667046,1.96432621,2519.3,2519.1,0.79349]
[1749308667245,1.9513,2519.4,2519.0,0.79353]
[1749308667447,0.79351,2519.1,2519.0,0.79353]
[1749308667943,0.79351,2519.1,2518.9,1.44225]
[1749308668148,0.79351,2519.1,2518.8,0.6874]
[1749308668149,0.79357,2518.9,2518.8,0.6874]
[1749308669352,0.79357,2518.9,2518.8,1.48101]
[1749308669644,0.79361,2518.8,2518.7,0.00596161]
[1749308670050,1.96586598,2518.8,2518.7,0.00596161]
[1749308671155,1.17225598,2518.8,2518.7,0.79960161]
[1749308671945,0.79354,2519.0,2518.9,0.79356]
[1749308672153,1.96588156,2519.0,2518.9,0.79356]
[1749308673557,1.17234156,2519.0,2518.7,0.79959161]
[1749308673750,0.6511,2519.1,2518.7,0.79959161]
[1749308673751,0.79361,2518.8,2518.7,0.00596161]
[1749308674049,1.96676181,2518.8,2518.7,0.00596161]
[1749308674548,0.79361,2518.8,2518.7,0.00596161]
[1749308674754,1.96702121,2518.8,2518.7,0.79960161]
[1749308674954,5.48654067,2520.2,2518.7,0.00596161]
[1749308675159,0.7932,2520.2,2519.9,0.79326]
[1749308675653,0.7932,2520.2,2520.0,0.79323]
[1749308676056,0.79318,2520.2,2520.0,0.79323]
[1749308676448,0.79318,2520.2,2519.9,0.79324]
[1749308676753,0.66816161,2520.1,2519.8,0.79329]
[1749308677053,0.79324,2520.0,2519.8,0.79329]
[1749308677250,0.79328,2519.9,2519.7,0.79332]
[1749308677447,4.5089,2520.0,2519.3,3.2078]
[1749308677653,0.79329,2519.8,2519.5,0.79337]
[1749308678057,0.79329,2519.8,2519.6,0.79335]
[1749308679350,3.2078,2520.0,2519.3,3.2078]
[1749308679548,4.00105,2520.0,2519.7,0.7933]
[1749308680148,3.2078,2520.0,2519.8,0.79329]
[1749308680347,4.00103,2520.0,2519.8,0.79329]
[1749308680652,4.00103,2520.0,2519.5,0.6672]
[1749308680848,4.00103,2520.0,2519.8,0.79329]
[1749308681448,0.66816161,2520.1,2520.0,0.79323]
[1749308683053,0.00596161,2520.1,2520.0,0.79323]
[1749308684256,3.21376161,2520.1,2519.8,0.79327]
[1749308684450,0.79324,2520.0,2519.8,0.79327]
[1749308684862,0.79326,2519.9,2519.7,0.7933]
[1749308685048,0.6844,2519.9,2519.6,3.2078]
[1749308685254,0.6844,2519.9,2519.8,0.79329]
[1749308687558,0.79332,2519.7,2519.6,3.2078]
[1749308687753,0.6844,2519.9,2519.6,3.2078]
[1749308687954,3.2078,2519.8,2519.2,1.2882]
[1749308688155,0.79339,2519.5,2519.4,0.79339]
[1749308688653,4.5485,2519.8,2519.2,0.659]
[1749308688853,0.79339,2519.5,2519.4,0.7934]
[1749308689453,0.79342,2519.5,2519.3,0.79343]
[1749308689655,0.6909,2519.4,2519.3,0.79343]
[1749308690152,1.48432,2519.4,2519.3,0.79343]
[1749308690359,0.6909,2519.4,2519.3,0.79343]
[1749308690562,1.48432,2519.4,2519.3,0.79343]
[1749308690853,0.6909,2519.4,2519.3,0.79343]
[1749308692061,0.6909,2519.4,2519.2,1.45246]
[1749308692253,1.98365,2519.3,2518.7,0.00596161]
[1749308692459,0.79361,2518.8,2518.7,0.00596161]
[1749308692762,0.79353,2519.1,2519.0,0.79354]
[1749308693155,5.1989,2519.2,2518.7,1.36246161]
[1749308693563,0.79353,2519.1,2519.0,0.79353]
[1749308694564,0.79355,2519.0,2518.9,0.79355]
[1749308695262,0.79353,2519.1,2519.0,0.79354]
[1749308695659,5.1989,2519.2,2518.7,0.00596161]
[1749308695861,0.7936,2518.9,2518.8,0.7936]
[1749308696060,0.79361,2518.8,2518.7,0.00596161]
[1749308696258,1.12812111,2518.8,2518.1,0.79382]
[1749308696466,3.2078,2518.3,2517.7,2.7478]
[1749308696775,0.79388,2518.0,2517.8,0.7939]
[1749308696964,3.2078,2518.0,2517.7,1.3689]
[1749308697263,3.2078,2518.0,2517.5,0.794]
[1749308697454,0.79395,2517.7,2517.6,0.00596161]
[1749308698056,9.00175,2517.7,2517.6,0.00596161]
[1749308698451,4.00175,2517.7,2517.6,0.00596161]
[1749308699661,9.00175,2517.7,2517.6,0.00596161]
[1749308700160,3.2078,2517.7,2517.6,0.79994161]